bitfinex/quotes_ETHUSD_20250415
["timestamp","ask_amount","ask_price","bid_price","bid_amount"]
[1744731610927,13.22989,1617.7,1617.3,6.18299]
[1744731611124,6.286,1617.7,1617.5,6.18204]
[1744731611653,6.18293,1617.4,1617.1,6.18379]
[1744731611852,6.18327,1617.3,1617.0,6.18422]
[1744731612150,6.18327,1617.3,1617.0,6.18417]
[1744731612351,6.18399,1617.1,1616.8,6.18491]
[1744731612552,6.18442,1617.0,1616.6,6.18567]
[1744731612762,7.01418,1617.2,1616.9,6.1846]
[1744731613067,7.01418,1617.2,1616.6,6.18575]
[1744731613068,3.8305,1617.2,1616.6,6.18575]
[1744731613362,0.8305,1617.2,1616.7,0.061851]
[1744731613565,6.286,1617.3,1617.1,6.1839]
[1744731613922,6.18361,1617.2,1616.9,12.36911]
[1744731614128,13.793752,1617.3,1616.9,12.36911]
[1744731614476,6.1841,1617.1,1616.7,6.18541]
[1744731614774,7.610322,1617.3,1616.6,6.18582]
[1744731615075,6.18478,1616.9,1616.5,6.71038]
[1744731615243,6.18508,1616.8,1616.5,6.18608]
[1744731615447,6.18508,1616.8,1616.5,12.37216]
[1744731615772,6.285,1616.9,1616.6,6.1857]
[1744731616074,6.18399,1617.1,1616.8,6.18505]
[1744731616257,3.828,1617.2,1616.8,6.18505]
[1744731616258,0.828,1617.2,1617.1,6.1839]
[1744731616457,0.7588,1617.5,1617.3,6.1828]
[1744731616656,0.7588,1617.8,1617.6,6.1818]
[1744731616845,6.18087,1617.9,1617.6,6.1818]
[1744731618073,6.05,1618.2,1617.7,0.58611579]
[1744731618280,11.14414084,1618.3,1618.0,6.18026]
[1744731618570,12.36054,1618.1,1617.7,6.70576]
[1744731618778,12.36054,1618.1,1617.7,6.18146]
[1744731619475,6.18049,1618.0,1617.7,12.36295]
[1744731619770,6.18008,1618.1,1617.8,6.18108]
[1744731619975,6.18103,1617.9,1617.6,6.18183]
[1744731620174,6.18131,1617.8,1617.5,6.18231]
[1744731620381,6.18164,1617.7,1617.3,6.18307]
[1744731620668,6.18164,1617.7,1617.4,6.18261]
[1744731620872,12.36343,1617.7,1617.4,6.18261]
[1744731621076,13.23778,1617.9,1617.4,1.29838514]
[1744731621284,6.18137,1617.8,1617.5,6.18221]
[1744731621440,6.18193,1617.7,1617.3,12.36606]
[1744731621660,6.18181,1617.7,1617.4,6.18274]
[1744731622076,12.36361,1617.7,1617.4,6.18274]
[1744731622283,12.36365,1617.7,1617.4,6.18274]
[1744731622587,12.36365,1617.7,1617.3,12.366]
[1744731622828,12.36365,1617.7,1617.3,6.18298]
[1744731622953,6.1818,1617.7,1617.3,6.18298]
[1744731623288,6.1818,1617.7,1617.4,6.18273]
[1744731623452,12.36362,1617.7,1617.4,6.18273]
[1744731623788,6.97025,1617.5,1617.1,6.80225]
[1744731623993,6.18317,1617.3,1617.0,6.18417]
[1744731624198,6.18317,1617.3,1616.9,6.18464]
[1744731624495,0.7542,1617.7,1617.2,6.18321]
[1744731624649,6.18203,1617.6,1617.2,6.18344]
[1744731624849,6.93582,1617.7,1617.1,12.65587168]
[1744731625061,0.7542,1617.7,1617.5,6.18233]
[1744731625388,6.93592,1617.7,1617.4,6.18264]
[1744731625562,6.93592,1617.7,1617.4,6.18263]
[1744731625883,0.7542,1617.7,1617.5,12.36472]
[1744731626094,3.7542,1617.7,1616.9,0.5243]
[1744731626292,3.0,1617.6,1617.0,12.13166168]
[1744731626447,0.7542,1617.7,1617.5,6.1822]
[1744731626649,55.3074,1617.9,1617.4,6.24458059]
[1744731626887,54.507,1617.9,1617.7,6.18142]
[1744731627053,6.282,1617.9,1617.8,6.18123]
[1744731627553,6.282,1617.9,1617.6,6.18172]
[1744731627903,6.282,1617.9,1617.4,6.18263]
[1744731628196,12.46306,1617.9,1617.5,6.18225]
[1744731628489,12.36283,1617.8,1617.5,6.18236]
[1744731628664,6.18123,1617.8,1617.3,6.70732]
[1744731628990,6.93396,1617.7,1617.4,6.18275]
[1744731629721,0.7522,1617.7,1617.4,6.18265]
[1744731629908,6.18225,1617.6,1617.2,6.18343]
[1744731630605,6.18225,1617.6,1617.3,6.18308]
[1744731630800,13.709186,1617.9,1617.4,5.94769168]
[1744731630801,7.0593,1617.9,1617.4,5.94769168]
[1744731630989,7.0583,1618.2,1617.6,18.31167168]
[1744731631338,7.00634,1618.4,1618.1,6.18008]
[1744731631479,6.18007,1618.2,1617.8,6.18112]
[1744731631679,6.18049,1618.0,1617.9,0.23023493]
[1744731631877,12.46109,1618.1,1617.8,6.18112]
[1744731632116,12.46109,1618.1,1617.8,12.36222]
[1744731632418,6.281,1618.1,1617.9,0.23067923]
[1744731632715,6.18046,1618.0,1617.9,0.23067923]
[1744731632878,6.18046,1618.0,1617.7,6.18145]
[1744731633080,6.281,1618.1,1617.9,6.41271914]
[1744731633277,12.46109,1618.1,1617.8,12.59437565]
[1744731633494,6.98704,1618.0,1617.5,0.46013549]
[1744731633693,0.8065,1618.0,1617.7,6.18136]
[1744731633979,6.281,1618.1,1618.0,6.18046]
[1744731634296,6.281,1618.1,1617.8,12.3621]
[1744731634493,6.18105,1617.9,1617.6,6.18189]
[1744731634817,6.1818,1617.7,1617.3,6.1831]
[1744731635019,6.281,1617.6,1617.4,6.18249]
[1744731635343,6.281,1617.6,1617.5,6.18238]
[1744731635825,0.7702,1618.0,1617.5,6.18238]
[1744731636006,6.281,1618.1,1617.6,6.18173]
[1744731636326,6.18058,1618.0,1617.7,6.18161]
[1744731636704,12.3612,1618.0,1617.7,6.18161]
[1744731637120,14.22542,1618.0,1617.6,12.36396]
[1744731637318,8.0448,1618.0,1617.7,6.18159]
[1744731637539,1.86422,1618.0,1617.7,6.18159]
[1744731637699,6.281,1618.1,1617.6,6.18199]
[1744731638041,6.281,1618.1,1617.9,6.18068]
[1744731638241,6.281,1618.1,1617.7,6.18148]
[1744731638242,6.18061,1618.0,1617.7,6.18148]
[1744731638603,6.18099,1617.9,1617.5,6.70663]
[1744731638812,0.8002,1617.8,1617.4,6.18265]
[1744731639015,18.64355,1617.7,1617.4,6.18265]
[1744731639243,12.46165,1617.7,1617.4,12.36527]
[1744731639443,18.64342,1617.7,1617.4,6.18262]
[1744731639741,6.98729,1617.4,1617.0,6.18408]
[1744731640039,6.18374,1617.2,1616.8,6.18493]
[1744731640243,18.64653,1617.3,1616.9,6.24638552]
[1744731640442,12.46327,1617.3,1616.6,6.18553]
[1744731640609,6.28,1617.3,1616.6,6.18582]
[1744731640806,6.28,1617.3,1616.9,6.18443]
[1744731641010,6.1836,1617.2,1616.8,6.18498]
[1744731641207,6.1836,1617.2,1617.0,0.16846252]
[1744731641407,12.46318,1617.3,1616.9,0.17284813]
[1744731641628,12.46318,1617.3,1617.0,12.36844]
[1744731641834,12.46318,1617.3,1617.0,12.54095423]
[1744731642043,12.46318,1617.3,1617.0,12.54081423]
[1744731642218,12.46318,1617.3,1617.0,0.17251423]
[1744731642545,6.28,1617.3,1617.0,6.99244165]
[1744731642955,6.1839,1617.1,1616.8,6.18488]
[1744731643255,6.1839,1617.1,1616.9,0.173355]
[1744731643609,6.99349,1617.0,1616.9,0.173355]
[1744731644148,13.17797,1617.0,1616.9,0.17424303]
[1744731644355,13.17797,1617.0,1616.6,12.3715]
[1744731644527,6.281,1616.9,1616.7,0.17491101]
[1744731644846,6.281,1616.9,1616.6,13.60865]
[1744731645016,6.281,1616.9,1616.8,0.17457699]
[1744731645219,6.99092,1617.3,1616.9,6.18467]
[1744731645418,6.282,1617.2,1617.0,6.18414]
[1744731645753,6.282,1617.2,1617.0,6.36450758]
[1744731646137,12.46564,1617.2,1617.0,0.18036758]
[1744731647258,6.1839,1617.1,1617.0,0.18036758]
[1744731647609,6.18432,1617.0,1616.7,6.18526]
[1744731648551,12.36885,1617.0,1616.6,13.60859]
[1744731648848,6.18399,1617.1,1616.6,1.23715]
[1744731649055,6.18399,1617.1,1616.7,6.18543]
[1744731649211,6.18399,1617.1,1616.8,6.18498]
[1744731649414,6.18399,1617.1,1616.7,12.3706]
[1744731649646,12.36807,1617.1,1616.7,12.37062]
[1744731649853,6.18399,1617.1,1616.8,6.18495]
[1744731650038,6.18399,1617.1,1616.8,6.18492]
[1744731650351,6.18399,1617.1,1616.8,6.18503]
[1744731650852,6.18399,1617.1,1616.8,6.18493]
[1744731651232,6.282,1617.2,1616.8,1.29888209]
[1744731651415,6.282,1617.2,1617.1,6.1839]
[1744731651626,7.0404,1617.5,1617.3,6.18289]
[1744731651966,13.2228,1617.5,1617.2,6.18346]
[1744731652470,7.0404,1617.5,1617.3,6.18301]
[1744731652642,7.0404,1617.5,1617.3,6.183]
[1744731653152,6.282,1617.5,1617.4,6.18276]
[1744731653481,57.148852,1617.7,1617.5,6.1822]
[1744731653482,55.3038,1617.7,1617.5,6.1822]
[1744731653634,54.495,1617.7,1617.5,6.1822]
[1744731653832,60.67661,1617.7,1617.6,0.17621142]
[1744731654029,54.495,1617.7,1617.6,0.17621142]
[1744731654229,54.495,1617.7,1617.6,6.18199]
[1744731654471,54.495,1617.7,1617.6,6.35769529]
[1744731654630,54.495,1617.7,1617.6,0.17570529]
[1744731655075,54.495,1617.7,1617.6,6.35769529]
[1744731655444,54.495,1617.7,1617.6,0.17570529]
[1744731656136,54.495,1617.7,1617.6,6.35769529]
[1744731657168,54.495,1617.7,1617.6,0.17570529]
[1744731657656,54.495,1617.7,1617.6,6.35769529]
[1744731658726,6.28,1618.0,1617.9,6.18085]
[1744731658931,6.28,1618.1,1617.9,6.35048739]
[1744731659129,6.28,1618.1,1618.0,6.18046]
[1744731659363,7.0623,1618.2,1618.0,6.18046]
[1744731659537,6.28,1618.2,1618.1,0.16833544]
[1744731659864,12.4597,1618.2,1618.1,0.16833544]
[1744731660078,14.323604,1618.2,1618.1,0.16833544]
[1744731660243,8.143904,1618.2,1617.7,6.18153]
[1744731660576,6.18046,1618.1,1617.7,6.18144]
[1744731660733,6.18063,1618.0,1617.8,0.16857665]
[1744731660934,12.36142,1618.0,1617.8,0.16857665]
[1744731661129,12.36142,1618.0,1617.7,6.18144]
[1744731661364,18.088444,1618.2,1617.9,0.16932293]
[1744731661676,6.18085,1617.9,1617.8,0.16908477]
[1744731661848,6.18085,1617.9,1617.6,6.1819]
[1744731662175,6.279,1617.8,1617.6,6.18189]
[1744731662333,6.279,1617.8,1617.6,12.36378]
[1744731662764,6.279,1617.8,1617.6,12.36376]
[1744731662946,6.279,1617.8,1617.6,6.18187]
[1744731663151,6.18085,1617.9,1617.6,12.36373]
[1744731663352,6.279,1618.1,1617.8,6.18123]
[1744731663551,6.279,1618.1,1617.9,12.36136]
[1744731663752,6.279,1618.1,1618.0,6.18046]
[1744731663973,6.279,1618.1,1617.8,0.5243]
[1744731663974,6.279,1618.1,1617.8,6.70538]
[1744731664201,15.27899,1618.4,1617.9,6.851138]
[1744731664202,6.17949,1618.3,1617.9,6.851138]
[1744731664473,6.17972,1618.2,1617.9,12.36133]
[1744731664785,12.50801,1618.4,1618.0,6.18028]
[1744731664944,6.329,1618.4,1618.0,6.18028]
[1744731665131,6.329,1618.4,1618.1,6.17976]
[1744731665477,12.50798,1618.4,1618.0,12.3607]
[1744731665636,6.17944,1618.3,1618.0,6.18035]
[1744731665837,12.50805,1618.4,1618.1,6.17997]
[1744731666032,12.50805,1618.4,1618.1,12.35994]
[1744731666233,6.329,1618.4,1618.3,6.17932]
[1744731667294,0.05,1618.4,1618.3,6.17932]
[1744731667446,0.05,1618.4,1618.3,8.085585]
[1744731669356,0.05,1618.4,1618.3,6.17932]
[1744731670412,0.05,1618.4,1618.2,6.70381]
[1744731670687,7.03577,1618.4,1618.1,6.17999]
[1744731670984,0.8567,1618.4,1618.2,12.35934]
[1744731671483,0.8567,1618.4,1618.1,6.17999]
[1744731671484,6.22896,1618.4,1618.1,6.17999]
[1744731671647,0.05,1618.4,1618.3,6.17932]
[1744731672053,0.05,1618.4,1618.2,12.35908]
[1744731672392,0.05,1618.4,1618.2,6.17952]
[1744731673047,0.05,1618.4,1618.3,6.17932]
[1744731674351,0.05,1618.4,1618.3,6.34281567]
[1744731676948,0.05,1618.4,1618.3,0.16349567]
[1744731677655,0.05,1618.4,1618.3,6.34281567]
[1744731678273,0.05,1618.4,1618.3,0.16349567]
[1744731678506,0.05,1618.4,1618.3,6.34281567]
[1744731678824,0.05,1618.4,1618.3,0.16349567]
[1744731679511,0.05,1618.4,1618.3,6.34281567]
[1744731679720,0.05,1618.4,1618.3,7.59504824]
[1744731680612,0.05,1618.4,1618.3,1.41572824]
[1744731680780,0.05,1618.4,1618.3,0.16349567]
[1744731681110,0.05,1618.4,1618.3,6.34281567]
[1744731681509,0.05,1618.4,1618.3,0.16349567]
[1744731681670,0.05,1618.4,1618.3,6.34281567]
[1744731682279,7.01464,1618.4,1618.3,0.16349567]
[1744731682480,7.01464,1618.4,1617.7,6.18154]
[1744731682481,6.1802,1618.1,1617.7,6.18154]
[1744731682777,6.276,1618.1,1617.9,6.18081]
[1744731683125,6.276,1618.1,1618.0,6.90116438]
[1744731683405,13.28867,1618.4,1618.1,6.1799]
[1744731683580,13.28867,1618.4,1618.2,0.13437494]
[1744731683969,7.1097,1618.4,1618.2,0.13437494]
[1744731684169,6.17932,1618.3,1618.2,0.13437494]
[1744731684411,6.17932,1618.3,1618.0,12.36072]
[1744731684589,6.17932,1618.3,1618.2,0.13456552]
[1744731684795,6.17932,1618.3,1618.0,6.18035]
[1744731684990,6.17932,1618.3,1618.1,0.13489901]
[1744731685191,7.1097,1618.4,1618.2,6.17958]
[1744731685408,6.324,1618.4,1618.3,0.13378743]
[1744731685609,13.33204,1618.4,1618.3,0.13378743]
[1744731685979,6.17935,1618.3,1618.0,6.18033]
[1744731686221,6.1797,1618.2,1618.1,0.13514832]
[1744731686592,6.18059,1618.0,1617.7,6.18148]
[1744731686781,13.28279,1618.0,1617.8,0.13675257]
[1744731686984,13.28279,1618.0,1617.3,9.47186803]
[1744731686985,6.18161,1617.7,1617.3,9.47186803]
[1744731687203,6.94034,1617.5,1617.4,0.13706656]
[1744731687384,16.21434,1617.5,1617.4,0.13706656]
[1744731687583,6.18364,1617.2,1616.9,6.18457]
[1744731687821,6.94154,1617.2,1617.0,0.13084521]
[1744731688083,0.7579,1617.2,1617.0,0.13084521]
[1744731688310,13.12376,1617.4,1617.0,6.31486521]
[1744731688506,13.12376,1617.4,1617.0,12.49903521]
[1744731688715,6.941,1617.4,1617.0,7.56497873]
[1744731688924,0.7579,1617.4,1617.1,6.1839]
[1744731689255,0.7579,1617.4,1617.2,0.13515648]
[1744731689527,12.45654,1617.5,1617.1,12.36757]
[1744731689689,6.1829,1617.4,1617.2,0.13496516]
[1744731689888,12.36585,1617.4,1617.1,6.18372]
[1744731690085,6.18371,1617.2,1616.8,6.70931]
[1744731690293,6.18371,1617.2,1616.5,6.18616]
[1744731690294,8.046805,1617.4,1617.0,6.18392]
[1744731690527,15.052635,1617.4,1617.0,6.18394]
[1744731690721,6.18353,1617.2,1616.9,6.18463]
[1744731690884,6.18416,1617.1,1616.8,6.18498]
[1744731691222,12.45916,1617.1,1616.8,6.18498]
[1744731691686,12.45916,1617.1,1616.7,6.18542]
[1744731691891,12.45916,1617.1,1616.8,6.18496]
[1744731692417,6.275,1617.1,1616.8,6.18493]
[1744731692613,6.275,1617.1,1616.8,12.43171533]
[1744731692814,6.275,1617.1,1616.8,12.36987]
[1744731693626,6.275,1617.1,1616.9,6.18447]
[1744731693829,6.277,1617.3,1617.1,6.18356]
[1744731694213,6.277,1617.3,1617.0,6.18429]
[1744731694419,12.46014,1617.3,1617.0,6.18429]
[1744731694606,6.277,1617.3,1617.0,6.18417]
[1744731694805,6.277,1617.3,1616.9,0.5243]
[1744731695021,6.18358,1617.2,1616.9,6.7089]
[1744731695217,13.17033,1617.3,1616.9,6.7088]
[1744731695620,13.17033,1617.3,1617.0,6.18417]
[1744731695823,6.98698,1617.3,1617.0,6.18427]
[1744731696129,6.1839,1617.2,1616.8,6.185]
[1744731696335,9.18356,1617.2,1616.8,6.18491]
[1744731696493,15.36738,1617.2,1616.8,6.18491]
[1744731696695,6.18443,1617.0,1616.7,0.5243]
[1744731696996,12.36721,1617.2,1616.8,0.13782682]
[1744731697224,3.8228,1617.4,1616.8,0.19967227]
[1744731697420,3.8228,1617.4,1617.0,6.70846]
[1744731697421,6.277,1617.4,1617.0,6.70846]
[1744731697731,18.64305,1617.4,1617.1,0.13548418]
[1744731698094,6.95822,1617.2,1617.1,0.13548418]
[1744731698291,0.7747,1617.2,1616.9,12.36914]
[1744731698500,13.22119,1617.4,1617.0,6.32008814]
[1744731698734,13.22119,1617.4,1617.0,0.13581814]
[1744731698735,6.18316,1617.3,1617.0,0.13581814]
[1744731698932,12.46016,1617.3,1617.0,6.32007814]
[1744731699228,12.46016,1617.3,1617.0,0.13581814]
[1744731699408,6.277,1617.3,1617.0,6.31982814]
[1744731699608,6.277,1617.3,1617.0,12.50399814]
[1744731700306,6.277,1617.3,1617.1,6.18386]
[1744731700511,6.277,1617.3,1617.2,0.14070101]
[1744731700838,6.277,1617.3,1617.0,6.18426]
[1744731701042,6.277,1617.3,1617.2,0.14057633]
[1744731701216,6.277,1617.3,1617.1,0.14091026]
[1744731701538,6.277,1617.3,1617.2,0.14044911]
[1744731701840,12.46027,1617.3,1617.0,6.18418]
[1744731701999,14.400707,1617.3,1617.2,0.14063995]
[1744731702333,14.400707,1617.3,1616.7,3.5243]
[1744731702334,6.18401,1617.1,1616.8,6.18492]
[1744731702537,6.18401,1617.1,1616.8,6.18504]
[1744731702738,12.36807,1617.1,1616.8,6.18504]
[1744731702945,6.18401,1617.1,1616.8,12.36996]
[1744731703114,6.277,1617.3,1616.9,6.24640452]
[1744731703313,6.18353,1617.2,1616.9,6.18456]
[1744731703703,6.18353,1617.2,1616.9,12.36911]
[1744731704430,6.18353,1617.2,1617.0,0.14187579]
[1744731704698,12.46024,1617.3,1617.0,12.51001579]
[1744731704903,12.46024,1617.3,1617.0,6.32586579]
[1744731705554,6.18363,1617.2,1617.0,0.14187579]
[1744731705911,20.584194,1617.3,1617.0,0.14187579]
[1744731706245,6.18362,1617.2,1617.0,0.14187579]
[1744731706541,6.9372,1617.1,1617.0,0.14187579]
[1744731706712,6.18454,1617.0,1616.6,6.18573]
[1744731706918,6.278,1616.9,1616.7,6.31704746]
[1744731707237,6.278,1616.9,1616.7,12.50234746]
[1744731707541,6.278,1616.9,1616.8,6.18505]
[1744731707709,6.278,1616.9,1616.8,0.1319159]
[1744731708716,12.46267,1616.9,1616.8,0.1319159]
[1744731708925,18.64752,1616.9,1616.5,0.5243]
[1744731709220,12.46267,1616.9,1616.6,0.19468882]
[1744731709646,18.64752,1616.9,1616.6,0.13283807]
[1744731710045,18.64752,1616.9,1616.6,0.19468872]
[1744731710252,12.46267,1616.9,1616.6,0.19468872]
[1744731710412,6.18505,1616.8,1616.6,0.13283807]
[1744731712142,12.46279,1616.9,1616.6,0.19468877]
[1744731712331,18.64775,1616.9,1616.6,0.19468877]
[1744731712672,18.64775,1616.9,1616.6,0.13283807]
[1744731712832,6.18518,1616.8,1616.6,0.13283807]
[1744731713454,6.18518,1616.8,1616.6,0.19468877]
[1744731713733,6.18518,1616.8,1616.6,0.88519565]
[1744731714247,6.278,1616.9,1616.6,0.88519565]
[1744731714474,6.278,1616.9,1616.7,12.37053]
[1744731714826,12.46288,1616.9,1616.8,0.13248161]
[1744731715135,6.18507,1616.8,1616.5,6.71037]
[1744731715667,12.37137,1616.7,1616.4,6.18648]
[1744731715871,12.37137,1616.7,1616.3,9.71118]
[1744731715872,6.18607,1616.6,1616.3,0.5243]
[1744731716066,6.18607,1616.6,1616.3,8.001114]
[1744731716236,6.18607,1616.6,1616.3,14.187974]
[1744731716431,6.18607,1616.6,1616.3,14.187874]
[1744731716970,6.18607,1616.6,1616.2,12.37451]
[1744731717175,6.18621,1616.5,1616.2,6.18724]
[1744731717332,12.37257,1616.5,1616.2,6.18724]
[1744731717532,12.37262,1616.5,1616.2,6.18724]
[1744731718065,6.18621,1616.5,1616.2,6.18724]
[1744731718770,6.1859,1616.6,1616.2,12.37447]
[1744731719172,12.46221,1616.5,1616.2,12.37447]
[1744731719486,48.239,1617.0,1616.3,6.32556284]
[1744731719649,19.44752,1616.9,1616.6,6.18569]
[1744731719970,19.44752,1616.9,1616.2,1.289877]
[1744731719971,6.1856,1616.7,1616.4,6.18648]
[1744731720266,6.18514,1616.8,1616.3,0.06185761]
[1744731720483,7.0779,1616.9,1616.5,6.18606]
[1744731720636,7.0779,1616.9,1616.6,0.06185751]
[1744731720981,6.276,1616.9,1616.7,6.70973]
[1744731722041,12.46068,1616.9,1616.6,6.18573]
[1744731722265,12.46068,1616.9,1616.6,6.18571]
[1744731722565,6.18516,1616.8,1616.5,6.71042]
[1744731723099,6.1855,1616.7,1616.4,6.18654]
[1744731723271,6.1855,1616.7,1616.4,6.18646]
[1744731723565,13.685956,1616.7,1616.4,6.18657]
[1744731723770,6.18586,1616.6,1616.3,12.898]
[1744731723968,0.776,1616.8,1616.3,6.71114]
[1744731724138,6.18621,1616.5,1616.2,6.18732]
[1744731724337,6.18621,1616.5,1616.2,12.37464]
[1744731724540,12.37256,1616.5,1616.2,6.18723]
[1744731724741,12.372,1616.6,1616.3,6.18686]
[1744731724952,12.372,1616.6,1616.2,12.3745]
[1744731725271,6.18549,1616.7,1616.4,6.18658]
[1744731725573,0.776,1616.8,1616.2,6.18728]
[1744731725574,6.18602,1616.6,1616.2,6.18728]
[1744731725761,0.776,1616.8,1616.4,6.18654]
[1744731725946,12.37132,1616.7,1616.4,6.18654]
[1744731726143,0.776,1616.8,1616.4,0.06185766]
[1744731726348,6.18472,1616.9,1616.5,6.18606]
[1744731726662,6.276,1616.8,1616.6,6.18582]
[1744731726872,6.276,1616.8,1616.5,12.37213]
[1744731727073,12.46113,1616.8,1616.4,6.18656]
[1744731727272,0.8002,1616.7,1616.2,6.18722]
[1744731727592,6.18631,1616.5,1616.2,6.18722]
[1744731727884,6.18631,1616.5,1616.2,12.37445]
[1744731728063,6.18592,1616.6,1616.3,6.24863186]
[1744731728260,12.37189,1616.6,1616.3,6.18677]
[1744731728460,13.17134,1616.7,1616.3,6.18677]
[1744731728789,6.18593,1616.6,1616.2,6.18728]
[1744731728986,12.37213,1616.6,1616.3,6.18694]
[1744731729152,6.18593,1616.6,1616.3,12.43564148]
[1744731729356,13.17127,1616.7,1616.4,6.18653]
[1744731729555,0.8002,1616.7,1616.4,6.18653]
[1744731729753,9.10948194,1617.6,1616.6,5.0347411]
[1744731729754,7.0321,1617.3,1616.6,5.0347411]
[1744731729955,11.10854084,1617.6,1617.1,6.18355]
[1744731730171,11.10854084,1617.6,1617.4,6.18259]
[1744731730361,10.35074084,1617.6,1617.4,0.06182051]
[1744731730561,10.35074084,1617.6,1617.2,6.70752]
[1744731730562,6.18253,1617.5,1617.2,6.70752]
[1744731730891,6.18241,1617.5,1617.2,0.5243]
[1744731731096,6.18241,1617.5,1617.2,6.18351]
[1744731731097,4.07474084,1617.4,1617.2,6.18351]
[1744731731399,4.07474084,1617.4,1617.2,6.24533762]
[1744731731694,4.07474084,1617.4,1617.3,0.1213814]
[1744731732251,4.07474084,1617.4,1617.2,6.1835]
[1744731732456,4.07474084,1617.4,1617.3,0.1220805]
[1744731733068,12.09911592,1617.4,1617.3,0.1220805]
[1744731733459,9.18314,1617.3,1616.7,6.1853]
[1744731733659,6.1842,1617.1,1616.7,12.37059]
[1744731733868,12.36847,1617.1,1616.8,0.11705704]
[1744731734493,6.18437,1617.0,1616.8,0.11705704]
[1744731734898,12.36801,1617.1,1616.8,0.11705704]
[1744731735062,8.048241,1617.1,1616.8,6.30205704]
[1744731735265,14.232311,1617.1,1616.8,6.30205704]
[1744731735491,14.232311,1617.1,1616.8,0.11705704]
[1744731735900,6.1843,1617.0,1616.8,0.11705704]
[1744731737900,6.275,1617.2,1616.8,0.17890134]
[1744731738067,12.45856,1617.2,1616.9,6.18456]
[1744731738387,12.45856,1617.2,1617.0,0.11702227]
[1744731738563,8.139184,1617.2,1617.0,0.11702227]
[1744731738761,12.45868,1617.2,1616.9,6.18464]
[1744731738963,12.45868,1617.2,1617.1,0.11637367]
[1744731739190,6.18393,1617.1,1616.8,12.36984]
[1744731739702,12.45868,1617.2,1616.9,6.18467]
[1744731739903,18.64253,1617.2,1616.9,6.18467]
[1744731740195,6.94487,1617.1,1616.8,6.18493]
[1744731740703,6.94484,1617.1,1616.8,6.18493]
[1744731740863,0.7609,1617.1,1616.8,12.43171432]
[1744731741067,0.7609,1617.1,1616.8,12.36987]
[1744731741270,8.139253,1617.2,1617.0,6.18428]
[1744731741469,8.139253,1617.2,1616.9,12.36934]
[1744731741684,6.275,1617.2,1617.0,6.184]
[1744731741896,6.275,1617.2,1617.1,6.1839]
[1744731742291,49.0059,1617.7,1617.5,6.18206]
[1744731742610,49.0059,1617.7,1617.3,6.18309]
[1744731742611,10.34974084,1617.8,1617.6,12.36387]
[1744731742812,10.34974084,1617.8,1617.6,6.18188]
[1744731743163,16.53099084,1617.8,1617.5,6.18234]
[1744731743365,4.07474084,1617.8,1617.2,6.70751]
[1744731743662,0.7609,1617.9,1617.2,6.70751]
[1744731743663,4.07474084,1617.7,1617.6,6.18199]
[1744731744066,4.07474084,1617.7,1617.5,6.70649]
[1744731744521,4.89034084,1617.7,1617.3,6.18297]
[1744731744817,6.18325,1617.3,1617.0,6.18416]
[1744731744964,6.18327,1617.3,1617.0,6.18417]
[1744731745165,6.18327,1617.3,1617.1,0.11614804]
[1744731745166,6.965937,1617.3,1617.1,0.11614804]
[1744731745472,4.07474084,1617.7,1617.2,0.5243]
[1744731745775,4.07474084,1617.7,1617.5,6.18225]
[1744731746092,4.07474084,1617.7,1617.5,12.42631682]
[1744731746399,4.07474084,1617.7,1617.5,6.18225]
[1744731746578,4.84714084,1617.7,1617.3,6.18303]
[1744731746779,6.18202,1617.6,1617.3,6.18303]
[1744731747506,6.18202,1617.6,1617.2,6.18342]
[1744731747701,6.18272,1617.5,1617.1,6.18376]
[1744731747908,12.36577,1617.4,1617.2,0.1382507]
[1744731748283,6.18244,1617.5,1617.2,6.1833]
[1744731748598,6.800684,1617.5,1617.3,0.13876398]
[1744731748987,0.7724,1617.7,1617.3,0.20059381]
[1744731749316,6.268,1617.8,1617.6,6.18199]
[1744731749515,6.268,1617.8,1617.7,6.18161]
[1744731750026,6.268,1617.8,1617.6,6.18186]
[1744731750314,6.18165,1617.7,1617.4,6.18276]
[1744731750515,0.8144,1617.7,1617.3,6.18306]
[1744731750817,6.1821,1617.6,1617.3,12.36606]
[1744731751020,0.8144,1617.7,1617.4,6.18274]
[1744731751170,6.99615,1617.7,1617.4,6.18274]
[1744731751383,13.17802,1617.7,1617.4,6.18274]
[1744731751685,6.99615,1617.7,1617.4,12.36538]
[1744731751915,6.99606,1617.7,1617.4,12.36528]
[1744731752111,13.17786,1617.7,1617.4,6.18264]
[1744731752412,0.8144,1617.7,1617.4,6.18264]
[1744731752619,2.140774,1617.7,1617.2,6.70774]
[1744731752816,6.18289,1617.4,1617.0,6.18424]
[1744731752986,7.00634,1617.3,1617.0,6.18417]
[1744731753212,0.8232,1617.3,1617.0,12.43018629]
[1744731753547,0.8232,1617.3,1617.0,12.36835]
[1744731753847,7.00642,1617.3,1617.0,12.36835]
[1744731754429,0.8232,1617.3,1617.0,6.18416]
[1744731754609,0.8232,1617.3,1617.0,12.36832]
[1744731754806,7.00639,1617.3,1617.0,6.18416]
[1744731755008,6.1841,1617.1,1616.8,6.18489]
[1744731755208,2.768928,1617.3,1616.7,6.77156809]
[1744731755436,6.18401,1617.1,1616.8,12.36963]
[1744731755629,12.36739,1617.2,1616.8,6.18469]
[1744731755948,12.36741,1617.2,1616.8,12.36964]
[1744731756348,6.18352,1617.2,1616.6,12.37143]
[1744731756530,6.18352,1617.2,1616.5,1.600131]